[Event "Titled Tuesday Blitz May 2 Early 2023"]
[White "Kleiman, Jake"]
[Black "Zhao, Jun"]
[WhiteFideId "2020041"]
[BlackFideId "8602522"]
[WhiteElo "2399"]
[BlackElo "2547"]
[Result "1-0"]
[Round "10"]
[TimeControl "180+2"]
[Date "2023.05.03"]
[WhiteClock "0:00:00"]
[BlackClock "0:00:00"]

1. e4 {[%clk 0:00:01]}  e5 {[%clk 0:00:01]} 2. Nf3 {[%clk 0:00:01]}  Nc6 {[%clk 0:00:01]} 3. Bc4 {[%clk 0:00:01]}  Nf6 {[%clk 0:00:01]} 4. d3 {[%clk 0:00:01]}  Bc5 {[%clk 0:00:01]} 5. c3 {[%clk 0:00:01]}  d6 {[%clk 0:00:01]} 6. Bb3 {[%clk 0:00:01]}  O-O {[%clk 0:00:01]} 7. O-O {[%clk 0:00:01]}  a6 {[%clk 0:00:01]} 8. h3 {[%clk 0:00:01]}  Ba7 {[%clk 0:00:01]} 9. Re1 {[%clk 0:00:01]}  Ne7 {[%clk 0:00:01]} 10. Nbd2 {[%clk 0:00:01]}  Ng6 {[%clk 0:00:01]} 11. Nf1 {[%clk 0:00:01]}  c5 {[%clk 0:00:01]} 12. Ng3 {[%clk 0:00:01]}  b5 {[%clk 0:00:01]} 13. Be3 {[%clk 0:00:01]}  h6 {[%clk 0:00:01]} 14. d4 {[%clk 0:00:01]}  c4 {[%clk 0:00:01]} 15. Bc2 {[%clk 0:00:01]}  Qc7 {[%clk 0:00:01]} 16. Qd2 {[%clk 0:00:01]}  Kh7 {[%clk 0:00:01]} 17. Rad1 {[%clk 0:00:01]}  Re8 {[%clk 0:00:01]} 18. Nf5 {[%clk 0:00:01]}  Bxf5 {[%clk 0:00:01]} 19. exf5 {[%clk 0:00:01]}  Nf8 {[%clk 0:00:01]} 20. g4 {[%clk 0:00:00]}  e4 {[%clk 0:00:01]} 21. Nh2 {[%clk 0:00:00]}  d5 {[%clk 0:00:01]} 22. Bf4 {[%clk 0:00:00]}  Qe7 {[%clk 0:00:01]} 23. f3 {[%clk 0:00:00]}  Bb8 {[%clk 0:00:01]} 24. fxe4 {[%clk 0:00:00]}  Nxe4 {[%clk 0:00:01]} 25. Bxe4 {[%clk 0:00:00]}  dxe4 {[%clk 0:00:01]} 26. Nf1 {[%clk 0:00:00]}  Nd7 {[%clk 0:00:01]} 27. Ng3 {[%clk 0:00:00]}  Nf6 {[%clk 0:00:01]} 28. Bxb8 {[%clk 0:00:00]}  Raxb8 {[%clk 0:00:01]} 29. Qf4 {[%clk 0:00:00]}  e3 {[%clk 0:00:01]} 30. d5 {[%clk 0:00:00]}  Qc5 {[%clk 0:00:01]} 31. d6 {[%clk 0:00:00]}  b4 {[%clk 0:00:00]} 32. Re2 {[%clk 0:00:00]}  bxc3 {[%clk 0:00:00]} 33. bxc3 {[%clk 0:00:00]}  Nd5 {[%clk 0:00:00]} 34. Qd4 {[%clk 0:00:00]}  Qxd4 {[%clk 0:00:00]} 35. Rxd4 {[%clk 0:00:00]}  Nxc3 {[%clk 0:00:00]} 36. Re1 {[%clk 0:00:00]}  Nb5 {[%clk 0:00:00]} 37. Rxc4 {[%clk 0:00:00]}  Nxd6 {[%clk 0:00:00]} 38. Rc3 {[%clk 0:00:00]}  Rb2 {[%clk 0:00:00]} 39. a3 {[%clk 0:00:00]}  e2 {[%clk 0:00:00]} 40. Kf2 {[%clk 0:00:00]}  Nb5 {[%clk 0:00:00]} 41. Rd3 {[%clk 0:00:00]}  Ra2 {[%clk 0:00:00]} 42. Rxe2 {[%clk 0:00:00]}  Rexe2+ {[%clk 0:00:00]} 43. Nxe2 {[%clk 0:00:00]}  Rxa3 {[%clk 0:00:00]} 44. Rd7 {[%clk 0:00:00]}  Rxh3 {[%clk 0:00:00]} 45. Rxf7 {[%clk 0:00:00]}  Nd6 {[%clk 0:00:00]} 46. Re7 {[%clk 0:00:00]}  Rd3 {[%clk 0:00:00]} 47. Nf4 {[%clk 0:00:00]}  Rd4 {[%clk 0:00:00]} 48. Ke3 {[%clk 0:00:00]}  Ra4 {[%clk 0:00:00]} 49. Kf3 {[%clk 0:00:00]}  Nc4 {[%clk 0:00:00]} 50. Ng6 {[%clk 0:00:00]}  Nd2+ {[%clk 0:00:00]} 51. Kg3 {[%clk 0:00:00]}  Ra3+ {[%clk 0:00:00]} 52. Kg2 {[%clk 0:00:00]}  Ra4 {[%clk 0:00:00]} 53. Kg3 {[%clk 0:00:00]}  Ra3+ {[%clk 0:00:00]} 54. Kf2 {[%clk 0:00:00]}  Ra2 {[%clk 0:00:00]} 55. Re8 {[%clk 0:00:00]}  Ne4+ {[%clk 0:00:00]} 56. Ke1 {[%clk 0:00:00]} 1-0


[Site "https://www.chess.com"]

[Event "Titled Tuesday Blitz May 2 Early 2023"]
[White "Colas, Joshua"]
[Black "Chernomordik, Pavel"]
[WhiteFideId "2044447"]
[BlackFideId "2804530"]
[WhiteElo "2347"]
[BlackElo "2193"]
[Result "1-0"]
[Round "10"]
[TimeControl "180+2"]
[Date "2023.05.03"]
[WhiteClock "0:00:00"]
[BlackClock "0:00:00"]

1. b3 {[%clk 0:00:01]}  g6 {[%clk 0:00:01]} 2. Bb2 {[%clk 0:00:01]}  Nf6 {[%clk 0:00:01]} 3. Bxf6 {[%clk 0:00:01]}  exf6 {[%clk 0:00:01]} 4. c4 {[%clk 0:00:01]}  d5 {[%clk 0:00:01]} 5. cxd5 {[%clk 0:00:01]}  Qxd5 {[%clk 0:00:01]} 6. Nc3 {[%clk 0:00:01]}  Qd6 {[%clk 0:00:01]} 7. Nf3 {[%clk 0:00:01]}  c5 {[%clk 0:00:01]} 8. g3 {[%clk 0:00:01]}  f5 {[%clk 0:00:01]} 9. Bg2 {[%clk 0:00:01]}  Nc6 {[%clk 0:00:01]} 10. O-O {[%clk 0:00:01]}  Bg7 {[%clk 0:00:01]} 11. Rc1 {[%clk 0:00:01]}  O-O {[%clk 0:00:01]} 12. d3 {[%clk 0:00:01]}  a6 {[%clk 0:00:01]} 13. Na4 {[%clk 0:00:01]}  f4 {[%clk 0:00:01]} 14. Nxc5 {[%clk 0:00:01]}  fxg3 {[%clk 0:00:01]} 15. hxg3 {[%clk 0:00:01]}  Re8 {[%clk 0:00:01]} 16. Ne4 {[%clk 0:00:01]}  Qe7 {[%clk 0:00:01]} 17. Re1 {[%clk 0:00:01]}  Bf5 {[%clk 0:00:01]} 18. Nc3 {[%clk 0:00:01]}  Rad8 {[%clk 0:00:01]} 19. Qd2 {[%clk 0:00:01]}  Qb4 {[%clk 0:00:01]} 20. Na4 {[%clk 0:00:01]}  Qd6 {[%clk 0:00:01]} 21. Nc5 {[%clk 0:00:01]}  Re7 {[%clk 0:00:01]} 22. Nh4 {[%clk 0:00:01]}  Bc8 {[%clk 0:00:01]} 23. Nxa6 {[%clk 0:00:01]}  Nd4 {[%clk 0:00:01]} 24. Nc5 {[%clk 0:00:01]}  Bg4 {[%clk 0:00:00]} 25. e3 {[%clk 0:00:01]}  g5 {[%clk 0:00:00]} 26. exd4 {[%clk 0:00:01]}  gxh4 {[%clk 0:00:00]} 27. Nxb7 {[%clk 0:00:01]}  Rxb7 {[%clk 0:00:00]} 28. Bxb7 {[%clk 0:00:01]}  hxg3 {[%clk 0:00:00]} 29. fxg3 {[%clk 0:00:01]}  Qxg3+ {[%clk 0:00:00]} 30. Qg2 {[%clk 0:00:01]}  Bxd4+ {[%clk 0:00:00]} 31. Kh1 {[%clk 0:00:01]}  Qh4+ {[%clk 0:00:00]} 32. Qh2 {[%clk 0:00:01]}  Qf6 {[%clk 0:00:00]} 33. Qg3 {[%clk 0:00:00]}  Qh6+ {[%clk 0:00:00]} 34. Kg2 {[%clk 0:00:00]}  Qd2+ {[%clk 0:00:00]} 35. Kf1 {[%clk 0:00:00]}  h5 {[%clk 0:00:00]} 36. Rc8 {[%clk 0:00:00]}  Rxc8 {[%clk 0:00:00]} 37. Bxc8 {[%clk 0:00:00]} 1-0


[Site "https://www.chess.com"]

[Event "Titled Tuesday Blitz May 2 Early 2023"]
[White "Jeet, Jain"]
[Black "Quesada Perez, Yuniesky"]
[WhiteFideId "5073022"]
[BlackFideId "3504409"]
[WhiteElo "2067"]
[BlackElo "2585"]
[Result "0-1"]
[Round "10"]
[TimeControl "180+2"]
[Date "2023.05.03"]
[WhiteClock "0:00:00"]
[BlackClock "0:00:00"]

1. Nf3 {[%clk 0:00:01]}  d5 {[%clk 0:00:01]} 2. g3 {[%clk 0:00:01]}  Bg4 {[%clk 0:00:01]} 3. Bg2 {[%clk 0:00:01]}  Nd7 {[%clk 0:00:01]} 4. d4 {[%clk 0:00:01]}  Ngf6 {[%clk 0:00:01]} 5. O-O {[%clk 0:00:01]}  e6 {[%clk 0:00:01]} 6. Nbd2 {[%clk 0:00:01]}  c6 {[%clk 0:00:01]} 7. c3 {[%clk 0:00:01]}  Be7 {[%clk 0:00:01]} 8. Re1 {[%clk 0:00:01]}  O-O {[%clk 0:00:01]} 9. e4 {[%clk 0:00:01]}  a5 {[%clk 0:00:01]} 10. e5 {[%clk 0:00:01]}  Ne8 {[%clk 0:00:01]} 11. a4 {[%clk 0:00:01]}  c5 {[%clk 0:00:01]} 12. Bf1 {[%clk 0:00:01]}  Nc7 {[%clk 0:00:01]} 13. h3 {[%clk 0:00:01]}  Bh5 {[%clk 0:00:01]} 14. Bd3 {[%clk 0:00:01]}  Na6 {[%clk 0:00:01]} 15. Nf1 {[%clk 0:00:01]}  Bg6 {[%clk 0:00:01]} 16. Bxg6 {[%clk 0:00:01]}  fxg6 {[%clk 0:00:01]} 17. h4 {[%clk 0:00:01]}  Nab8 {[%clk 0:00:01]} 18. Ne3 {[%clk 0:00:01]}  Nc6 {[%clk 0:00:01]} 19. Ng2 {[%clk 0:00:01]}  Qe8 {[%clk 0:00:01]} 20. Nf4 {[%clk 0:00:01]}  Qf7 {[%clk 0:00:01]} 21. Kg2 {[%clk 0:00:01]}  cxd4 {[%clk 0:00:00]} 22. cxd4 {[%clk 0:00:01]}  Qf5 {[%clk 0:00:00]} 23. Be3 {[%clk 0:00:00]}  Nb4 {[%clk 0:00:00]} 24. Rh1 {[%clk 0:00:00]}  Rac8 {[%clk 0:00:00]} 25. Rc1 {[%clk 0:00:00]}  Rc6 {[%clk 0:00:00]} 26. Rxc6 {[%clk 0:00:00]}  bxc6 {[%clk 0:00:00]} 27. Ne1 {[%clk 0:00:00]}  c5 {[%clk 0:00:00]} 28. g4 {[%clk 0:00:00]}  Qe4+ {[%clk 0:00:00]} 29. Qf3 {[%clk 0:00:00]}  cxd4 {[%clk 0:00:00]} 30. Qxe4 {[%clk 0:00:00]}  dxe4 {[%clk 0:00:00]} 31. Nxe6 {[%clk 0:00:00]}  dxe3 {[%clk 0:00:00]} 32. Nxf8 {[%clk 0:00:00]}  Bxf8 {[%clk 0:00:00]} 33. fxe3 {[%clk 0:00:00]}  Nxe5 {[%clk 0:00:00]} 34. Kg3 {[%clk 0:00:00]}  Ned3 {[%clk 0:00:00]} 35. b3 {[%clk 0:00:00]}  Bd6+ {[%clk 0:00:00]} 36. Kg2 {[%clk 0:00:00]}  Nd5 {[%clk 0:00:00]} 37. Rh3 {[%clk 0:00:00]}  Nxe1+ {[%clk 0:00:00]} 0-1


[Site "https://www.chess.com"]

[Event "Titled Tuesday Blitz May 2 Early 2023"]
[White "Mikhailovsky, Vladimir"]
[Black "Mendez Fortes, Eduardo Jesus"]
[WhiteFideId "34105414"]
[BlackFideId "3502376"]
[WhiteElo "2275"]
[BlackElo "2307"]
[Result "1-0"]
[Round "10"]
[TimeControl "180+2"]
[Date "2023.05.03"]
[WhiteClock "0:00:00"]
[BlackClock "0:00:00"]

1. e4 {[%clk 0:00:01]}  c5 {[%clk 0:00:01]} 2. c3 {[%clk 0:00:01]}  Nf6 {[%clk 0:00:01]} 3. e5 {[%clk 0:00:01]}  Nd5 {[%clk 0:00:01]} 4. Nf3 {[%clk 0:00:01]}  Nc6 {[%clk 0:00:01]} 5. Bc4 {[%clk 0:00:01]}  Nb6 {[%clk 0:00:01]} 6. Bb3 {[%clk 0:00:01]}  d5 {[%clk 0:00:01]} 7. exd6 {[%clk 0:00:01]}  Qxd6 {[%clk 0:00:01]} 8. O-O {[%clk 0:00:01]}  Be6 {[%clk 0:00:01]} 9. Bxe6 {[%clk 0:00:01]}  Qxe6 {[%clk 0:00:01]} 10. Re1 {[%clk 0:00:01]}  Qd7 {[%clk 0:00:01]} 11. a4 {[%clk 0:00:01]}  e6 {[%clk 0:00:01]} 12. a5 {[%clk 0:00:01]}  Nd5 {[%clk 0:00:01]} 13. a6 {[%clk 0:00:01]}  b6 {[%clk 0:00:01]} 14. d4 {[%clk 0:00:01]}  Rc8 {[%clk 0:00:01]} 15. Ne5 {[%clk 0:00:01]}  Nxe5 {[%clk 0:00:01]} 16. dxe5 {[%clk 0:00:01]}  Be7 {[%clk 0:00:01]} 17. Qg4 {[%clk 0:00:01]}  Kf8 {[%clk 0:00:01]} 18. Nd2 {[%clk 0:00:01]}  Nc7 {[%clk 0:00:01]} 19. Ne4 {[%clk 0:00:01]}  h6 {[%clk 0:00:01]} 20. Rd1 {[%clk 0:00:01]}  Qb5 {[%clk 0:00:01]} 21. Nd6 {[%clk 0:00:01]}  Bxd6 {[%clk 0:00:00]} 22. exd6 {[%clk 0:00:01]}  h5 {[%clk 0:00:00]} 23. Qh4 {[%clk 0:00:00]}  Nd5 {[%clk 0:00:00]} 24. Rxd5 {[%clk 0:00:00]}  exd5 {[%clk 0:00:00]} 25. Qe7+ {[%clk 0:00:00]}  Kg8 {[%clk 0:00:00]} 26. d7 {[%clk 0:00:00]}  Kh7 {[%clk 0:00:00]} 27. dxc8=Q {[%clk 0:00:00]}  Rxc8 {[%clk 0:00:00]} 28. Qxf7 {[%clk 0:00:00]}  Re8 {[%clk 0:00:00]} 29. Qxh5+ {[%clk 0:00:00]}  Kg8 {[%clk 0:00:00]} 30. Qxd5+ {[%clk 0:00:00]}  Kh8 {[%clk 0:00:00]} 31. Be3 {[%clk 0:00:00]}  Qxb2 {[%clk 0:00:00]} 32. Qh5+ {[%clk 0:00:00]} 1-0


[Site "https://www.chess.com"]

[Event "Titled Tuesday Blitz May 2 Early 2023"]
[White "Reprintsev, Alexander"]
[Black "Seo, Jung Min"]
[WhiteFideId "14100541"]
[BlackFideId "1734687"]
[WhiteElo "2211"]
[BlackElo "2468"]
[Result "0-1"]
[Round "10"]
[TimeControl "180+2"]
[Date "2023.05.03"]
[WhiteClock "0:00:00"]
[BlackClock "0:00:00"]

1. e4 {[%clk 0:00:01]}  e5 {[%clk 0:00:01]} 2. Nf3 {[%clk 0:00:01]}  Nc6 {[%clk 0:00:01]} 3. Bc4 {[%clk 0:00:01]}  Nf6 {[%clk 0:00:01]} 4. Ng5 {[%clk 0:00:01]}  d5 {[%clk 0:00:01]} 5. exd5 {[%clk 0:00:01]}  Na5 {[%clk 0:00:01]} 6. Bb5+ {[%clk 0:00:01]}  c6 {[%clk 0:00:01]} 7. dxc6 {[%clk 0:00:01]}  bxc6 {[%clk 0:00:01]} 8. Bd3 {[%clk 0:00:01]}  Nd5 {[%clk 0:00:01]} 9. h4 {[%clk 0:00:01]}  h6 {[%clk 0:00:01]} 10. Qh5 {[%clk 0:00:01]}  Qf6 {[%clk 0:00:01]} 11. Ne4 {[%clk 0:00:01]}  Qe6 {[%clk 0:00:01]} 12. b3 {[%clk 0:00:01]}  Nf4 {[%clk 0:00:01]} 13. Qf3 {[%clk 0:00:01]}  f5 {[%clk 0:00:01]} 14. Ng3 {[%clk 0:00:01]}  g6 {[%clk 0:00:01]} 15. Bb2 {[%clk 0:00:01]}  Bg7 {[%clk 0:00:01]} 16. Nc3 {[%clk 0:00:01]}  O-O {[%clk 0:00:01]} 17. O-O-O {[%clk 0:00:01]}  Rb8 {[%clk 0:00:01]} 18. Rhe1 {[%clk 0:00:01]}  c5 {[%clk 0:00:01]} 19. Na4 {[%clk 0:00:01]}  Qd6 {[%clk 0:00:01]} 20. Bf1 {[%clk 0:00:00]}  e4 {[%clk 0:00:01]} 21. Qe3 {[%clk 0:00:00]}  Bd4 {[%clk 0:00:01]} 22. Nxe4 {[%clk 0:00:00]}  fxe4 {[%clk 0:00:01]} 23. Qxe4 {[%clk 0:00:00]}  Bg4 {[%clk 0:00:00]} 24. f3 {[%clk 0:00:00]}  Bf5 {[%clk 0:00:00]} 25. Qe7 {[%clk 0:00:00]}  Qxe7 {[%clk 0:00:00]} 26. Rxe7 {[%clk 0:00:00]}  Nc6 {[%clk 0:00:00]} 27. Bc4+ {[%clk 0:00:00]}  Kh8 {[%clk 0:00:00]} 28. Rc7 {[%clk 0:00:00]}  Nb4 {[%clk 0:00:00]} 29. Nxc5 {[%clk 0:00:00]}  Bxb2+ {[%clk 0:00:00]} 30. Kxb2 {[%clk 0:00:00]}  Bxc2 {[%clk 0:00:00]} 31. Re1 {[%clk 0:00:00]}  Rbc8 {[%clk 0:00:00]} 32. Ree7 {[%clk 0:00:00]}  Rxc7 {[%clk 0:00:00]} 33. Rxc7 {[%clk 0:00:00]}  Bf5 {[%clk 0:00:00]} 34. g4 {[%clk 0:00:00]}  Nfd3+ {[%clk 0:00:00]} 35. Bxd3 {[%clk 0:00:00]}  Nxd3+ {[%clk 0:00:00]} 36. Kc3 {[%clk 0:00:00]}  Nxc5 {[%clk 0:00:00]} 37. gxf5 {[%clk 0:00:00]}  Rxf5 {[%clk 0:00:00]} 38. d4 {[%clk 0:00:00]}  Rxf3+ {[%clk 0:00:00]} 39. Kc4 {[%clk 0:00:00]}  Ne6 {[%clk 0:00:00]} 40. Rxa7 {[%clk 0:00:00]}  Rf4 {[%clk 0:00:00]} 41. Rd7 {[%clk 0:00:00]}  g5 {[%clk 0:00:00]} 42. hxg5 {[%clk 0:00:00]}  hxg5 {[%clk 0:00:00]} 43. a4 {[%clk 0:00:00]}  g4 {[%clk 0:00:00]} 44. Re7 {[%clk 0:00:00]}  Nxd4 {[%clk 0:00:00]} 45. Kd3 {[%clk 0:00:00]}  g3 {[%clk 0:00:00]} 46. Re1 {[%clk 0:00:00]}  Nf3 {[%clk 0:00:00]} 47. Rh1+ {[%clk 0:00:00]}  Kg8 {[%clk 0:00:00]} 48. Ke3 {[%clk 0:00:00]}  g2 {[%clk 0:00:00]} 49. Rh3 {[%clk 0:00:00]}  Rg4 {[%clk 0:00:00]} 0-1


[Site "https://www.chess.com"]

[Event "Titled Tuesday Blitz May 2 Early 2023"]
[White "Karthik Rajaa"]
[Black "Vlassov, Nikolai"]
[WhiteFideId "25035215"]
[BlackFideId "4103360"]
[WhiteElo "2215"]
[BlackElo "2324"]
[Result "1/2-1/2"]
[Round "10"]
[TimeControl "180+2"]
[Date "2023.05.03"]
[WhiteClock "0:00:00"]
[BlackClock "0:00:00"]

1. Nf3 {[%clk 0:00:01]}  c5 {[%clk 0:00:01]} 2. c4 {[%clk 0:00:01]}  g6 {[%clk 0:00:01]} 3. Nc3 {[%clk 0:00:01]}  Bg7 {[%clk 0:00:01]} 4. e3 {[%clk 0:00:01]}  Nf6 {[%clk 0:00:01]} 5. b3 {[%clk 0:00:01]}  d5 {[%clk 0:00:01]} 6. cxd5 {[%clk 0:00:01]}  Nxd5 {[%clk 0:00:01]} 7. Bb2 {[%clk 0:00:01]}  O-O {[%clk 0:00:01]} 8. Be2 {[%clk 0:00:01]}  Nc6 {[%clk 0:00:01]} 9. O-O {[%clk 0:00:01]}  b6 {[%clk 0:00:01]} 10. d4 {[%clk 0:00:01]}  cxd4 {[%clk 0:00:01]} 11. Nxd5 {[%clk 0:00:01]}  Qxd5 {[%clk 0:00:01]} 12. Nxd4 {[%clk 0:00:01]}  Bb7 {[%clk 0:00:01]} 13. Bf3 {[%clk 0:00:01]}  Qd7 {[%clk 0:00:01]} 14. Nxc6 {[%clk 0:00:01]}  Bxc6 {[%clk 0:00:00]} 15. Qxd7 {[%clk 0:00:01]}  Bxd7 {[%clk 0:00:00]} 16. Bxg7 {[%clk 0:00:01]}  Kxg7 {[%clk 0:00:00]} 17. Bxa8 {[%clk 0:00:01]}  Rxa8 {[%clk 0:00:00]} 18. Rac1 {[%clk 0:00:01]}  Be6 {[%clk 0:00:00]} 19. Rc7 {[%clk 0:00:01]}  a5 {[%clk 0:00:00]} 20. Rxe7 {[%clk 0:00:01]}  a4 {[%clk 0:00:00]} 21. Rb7 {[%clk 0:00:01]}  axb3 {[%clk 0:00:00]} 22. axb3 {[%clk 0:00:01]}  Ra6 {[%clk 0:00:00]} 23. b4 {[%clk 0:00:01]}  Bc4 {[%clk 0:00:00]} 24. b5 {[%clk 0:00:01]}  Ra5 {[%clk 0:00:00]} 25. Rc1 {[%clk 0:00:01]}  Rxb5 {[%clk 0:00:00]} 26. h3 {[%clk 0:00:01]}  Bd5 {[%clk 0:00:00]} 27. Ra7 {[%clk 0:00:00]}  Rb2 {[%clk 0:00:00]} 28. Rcc7 {[%clk 0:00:00]}  b5 {[%clk 0:00:00]} 29. Rd7 {[%clk 0:00:00]}  Bc4 {[%clk 0:00:00]} 30. Rab7 {[%clk 0:00:00]}  h5 {[%clk 0:00:00]} 31. Rdc7 {[%clk 0:00:00]}  Re2 {[%clk 0:00:00]} 32. h4 {[%clk 0:00:00]}  Re1+ {[%clk 0:00:00]} 33. Kh2 {[%clk 0:00:00]}  Re2 {[%clk 0:00:00]} 34. Kg3 {[%clk 0:00:00]}  Kf6 {[%clk 0:00:00]} 35. Kf3 {[%clk 0:00:00]}  Rd2 {[%clk 0:00:00]} 36. Rb6+ {[%clk 0:00:00]}  Kg7 {[%clk 0:00:00]} 37. Kg3 {[%clk 0:00:00]}  Re2 {[%clk 0:00:00]} 38. Rc5 {[%clk 0:00:00]}  Rd2 {[%clk 0:00:00]} 39. e4 {[%clk 0:00:00]}  Rd3+ {[%clk 0:00:00]} 40. f3 {[%clk 0:00:00]}  Rd2 {[%clk 0:00:00]} 41. Rcxb5 {[%clk 0:00:00]}  Bxb5 {[%clk 0:00:00]} 42. Rxb5 {[%clk 0:00:00]}  Rc2 {[%clk 0:00:00]} 43. Rd5 {[%clk 0:00:00]}  Rb2 {[%clk 0:00:00]} 44. Rd1 {[%clk 0:00:00]}  Ra2 {[%clk 0:00:00]} 45. Rf1 {[%clk 0:00:00]}  Rb2 {[%clk 0:00:00]} 46. Rf2 {[%clk 0:00:00]}  Rb3 {[%clk 0:00:00]} 47. Kf4 {[%clk 0:00:00]}  Rb4 {[%clk 0:00:00]} 48. Rd2 {[%clk 0:00:00]}  Ra4 {[%clk 0:00:00]} 49. Rd7 {[%clk 0:00:00]}  Rb4 {[%clk 0:00:00]} 50. g4 {[%clk 0:00:00]}  hxg4 {[%clk 0:00:00]} 51. Kxg4 {[%clk 0:00:00]}  Ra4 {[%clk 0:00:00]} 52. h5 {[%clk 0:00:00]}  gxh5+ {[%clk 0:00:00]} 53. Kxh5 {[%clk 0:00:00]}  Kf6 {[%clk 0:00:00]} 54. Kg4 {[%clk 0:00:00]}  Ke6 {[%clk 0:00:00]} 55. Rb7 {[%clk 0:00:00]}  Ra1 {[%clk 0:00:00]} 56. Kf4 {[%clk 0:00:00]}  Ra6 {[%clk 0:00:00]} 57. Rb5 {[%clk 0:00:00]}  Kf6 {[%clk 0:00:00]} 58. Rf5+ {[%clk 0:00:00]}  Ke6 {[%clk 0:00:00]} 59. Rh5 {[%clk 0:00:00]}  f6 {[%clk 0:00:00]} 60. Rh7 {[%clk 0:00:00]}  Ra5 {[%clk 0:00:00]} 61. Rb7 {[%clk 0:00:00]}  Rc5 {[%clk 0:00:00]} 62. Rb4 {[%clk 0:00:00]}  Ra5 {[%clk 0:00:00]} 63. Kg4 {[%clk 0:00:00]}  Rc5 {[%clk 0:00:00]} 64. f4 {[%clk 0:00:00]}  Ra5 {[%clk 0:00:00]} 65. Rb7 {[%clk 0:00:00]}  Ra4 {[%clk 0:00:00]} 66. f5+ {[%clk 0:00:00]}  Kd6 {[%clk 0:00:00]} 67. Kf4 {[%clk 0:00:00]}  Ra1 {[%clk 0:00:00]} 68. Rb6+ {[%clk 0:00:00]}  Ke7 {[%clk 0:00:00]} 69. Re6+ {[%clk 0:00:00]}  Kf7 {[%clk 0:00:00]} 70. Rc6 {[%clk 0:00:00]}  Rf1+ {[%clk 0:00:00]} 71. Ke3 {[%clk 0:00:00]}  Re1+ {[%clk 0:00:00]} 72. Kf3 {[%clk 0:00:00]}  Rf1+ {[%clk 0:00:00]} 73. Ke2 {[%clk 0:00:00]}  Ra1 {[%clk 0:00:00]} 74. Rc7+ {[%clk 0:00:00]}  Ke8 {[%clk 0:00:00]} 75. Kd3 {[%clk 0:00:00]}  Ra4 {[%clk 0:00:00]} 76. Rc4 {[%clk 0:00:00]}  Ra5 {[%clk 0:00:00]} 77. Kd4 {[%clk 0:00:00]}  Kd7 {[%clk 0:00:00]} 78. Rc5 {[%clk 0:00:00]}  Ra4+ {[%clk 0:00:00]} 79. Kd5 {[%clk 0:00:00]}  Ra1 {[%clk 0:00:00]} 80. Rc4 {[%clk 0:00:00]}  Rd1+ {[%clk 0:00:00]} 81. Rd4 {[%clk 0:00:00]}  Rc1 {[%clk 0:00:00]} 82. Rd3 {[%clk 0:00:00]}  Rc2 {[%clk 0:00:00]} 83. Kd4 {[%clk 0:00:00]}  Ke7 {[%clk 0:00:00]} 84. Rc3 {[%clk 0:00:00]}  Rd2+ {[%clk 0:00:00]} 85. Ke3 {[%clk 0:00:00]}  Rd1 {[%clk 0:00:00]} 86. Rc7+ {[%clk 0:00:00]}  Ke8 {[%clk 0:00:00]} 87. Kf4 {[%clk 0:00:00]}  Rf1+ {[%clk 0:00:00]} 88. Kg4 {[%clk 0:00:00]}  Rg1+ {[%clk 0:00:00]} 89. Kh5 {[%clk 0:00:00]}  Kf8 {[%clk 0:00:00]} 90. Kh6 {[%clk 0:00:00]}  Rg2 {[%clk 0:00:00]} 91. Rd7 {[%clk 0:00:00]}  Rg4 {[%clk 0:00:00]} 92. Kh5 {[%clk 0:00:00]}  Rxe4 {[%clk 0:00:00]} 93. Kg6 {[%clk 0:00:00]}  Ra4 {[%clk 0:00:00]} 94. Rd8+ {[%clk 0:00:00]}  Ke7 {[%clk 0:00:00]} 95. Rd3 {[%clk 0:00:00]}  Rg4+ {[%clk 0:00:00]} 96. Kh5 {[%clk 0:00:00]}  Rg5+ {[%clk 0:00:00]} 97. Kh4 {[%clk 0:00:00]}  Rxf5 {[%clk 0:00:00]} 98. Kg4 {[%clk 0:00:00]}  Rf1 {[%clk 0:00:00]} 99. Re3+ {[%clk 0:00:00]}  Kf7 {[%clk 0:00:00]} 100. Kg3 {[%clk 0:00:00]}  f5 {[%clk 0:00:00]} 101. Kg2 {[%clk 0:00:00]}  Rf4 {[%clk 0:00:00]} 102. Rf3 {[%clk 0:00:00]}  Rg4+ {[%clk 0:00:00]} 103. Kf2 {[%clk 0:00:00]}  Ke6 {[%clk 0:00:00]} 104. Ra3 {[%clk 0:00:00]}  Ke5 {[%clk 0:00:00]} 105. Ra5+ {[%clk 0:00:00]}  Kf4 {[%clk 0:00:00]} 106. Ra4+ {[%clk 0:00:00]}  Kg5 {[%clk 0:00:00]} 107. Ra8 {[%clk 0:00:00]}  Rb4 {[%clk 0:00:00]} 108. Kf3 {[%clk 0:00:00]}  Rb3+ {[%clk 0:00:00]} 109. Kf2 {[%clk 0:00:00]}  Kg4 {[%clk 0:00:00]} 110. Rg8+ {[%clk 0:00:00]}  Kf4 {[%clk 0:00:00]} 111. Rc8 {[%clk 0:00:00]}  Rb2+ {[%clk 0:00:00]} 112. Kf1 {[%clk 0:00:00]}  Kg4 {[%clk 0:00:00]} 113. Rc3 {[%clk 0:00:00]}  f4 {[%clk 0:00:00]} 114. Kg1 {[%clk 0:00:00]}  Re2 {[%clk 0:00:00]} 115. Kf1 {[%clk 0:00:00]}  Rd2 {[%clk 0:00:00]} 116. Kg1 {[%clk 0:00:00]}  Ra2 {[%clk 0:00:00]} 117. Kf1 {[%clk 0:00:00]}  Ra1+ {[%clk 0:00:00]} 118. Kf2 {[%clk 0:00:00]}  Ra2+ {[%clk 0:00:00]} 119. Kf1 {[%clk 0:00:00]}  Rd2 {[%clk 0:00:00]} 120. Kg1 {[%clk 0:00:00]}  Re2 {[%clk 0:00:00]} 121. Kf1 {[%clk 0:00:00]}  Re3 {[%clk 0:00:00]} 122. Rxe3 {[%clk 0:00:00]}  fxe3 {[%clk 0:00:00]} 123. Ke2 {[%clk 0:00:00]}  Kf4 {[%clk 0:00:00]} 124. Ke1 {[%clk 0:00:00]}  Ke4 {[%clk 0:00:00]} 125. Ke2 {[%clk 0:00:00]}  Kd4 {[%clk 0:00:00]} 126. Ke1 {[%clk 0:00:00]}  Kc3 {[%clk 0:00:00]} 127. Ke2 {[%clk 0:00:00]}  Kd4 {[%clk 0:00:00]} 128. Ke1 {[%clk 0:00:00]}  Kd3 {[%clk 0:00:00]} 129. Kd1 {[%clk 0:00:00]}  e2+ {[%clk 0:00:00]} 130. Ke1 {[%clk 0:00:00]}  Ke3 {[%clk 0:00:00]} 1/2-1/2


[Site "https://www.chess.com"]